[Event "XXIX Cracovia 2018"]
[Site "Krakow"]
[Date "2018.12.31"]
[Round "6"]
[White "Lewicki, Miroslaw"]
[Black "Marczuk, Dominik"]
[Result "0-1"]
[ECO "B19"]
[WhiteElo "2347"]
[BlackElo "2274"]
[Annotator "NA"]
[PlyCount "80"]
[EventDate "2018.12.27"]
[EventType "swiss"]
[EventCountry "POL"]
[SourceTitle "playchess.com"]
[Source "ChessBase"]
[SourceQuality "1"]
[TimeControl "40/5400+30:1800+30"]

1. e4 {[%emt 0:01:20]} c6 {[%emt 0:00:00]} 2. d4 {[%emt 0:03:05]} d5 {[%emt 0:00:00]} 3. Nd2 {[%emt 0:00:28]} dxe4 {[%emt 0:00:36]} 4. Nxe4 {[%emt 0:00:09]} Bf5 {[%emt 0:00:23]} 5. Ng3 {[%emt 0:00:15]} Bg6 {[%emt 0:00:07]} 6. Nf3 {[%emt 0:01:53]} Nd7 {[%emt 0:00:28]} 7. h4 {[%emt 0:01:38]} h6 {[%emt 0:00:17]} 8. h5 {[%emt 0:01:06]} Bh7 {[%emt 0:00:08]} 9. Bd3 {[%emt 0:00:18]} Bxd3 {[%emt 0:01:13]} 10. Qxd3 {[%emt 0:00:06]} e6 {[%emt 0:00:16]} 11. Bd2 {[%emt 0:04:50]} Ngf6 {[%emt 0:04:36]} 12. O-O-O {[%emt 0:00:45]} Be7 {[%emt 0:00:22]} 13. Kb1 {[%emt 0:09:55]} O-O {[%emt 0:05:56]} 14. Qe2 {[%emt 0:01:25]} c5 {[%emt 0:19:57]} 15. Bc1 {[%emt 0:03:36]} Qb6 {[%emt 0:08:22] LiveBook: 4 Games} 16. d5 {[%emt 0:01:38]} exd5 {[%emt 0:09:29]} 17. Nf5 {[%emt 0:00:06] [#]} (17. Qxe7 $2 Rae8 $17) 17... Bd6 {[%emt 0:01:07]} (17... Bd8 $1 $17 18. Rhe1 Ne4) 18. g4 {[%emt 0:05:23]} (18. Bxh6 $5 Rfe8 19. Be3 $11) 18... Rfe8 {[%emt 0:06:44]} 19. Qf1 $11 {[%emt 0:00:07]} Ne4 {[%emt 0:05:51]} 20. Ka1 {[%emt 0:00:06]} d4 {[%emt 0:01:37]} 21. Bxh6 {[%emt 0:09:54]} gxh6 {[%emt 0:05:03]} 22. Nxh6+ {[%emt 0:00:05]} Kf8 {[%emt 0:01:41]} 23. Qc4 {[%emt 0:00:21]} Re6 {[%emt 0:02:03]} 24. Nf5 {[%emt 0:10:04]} Qa6 {[%emt 0:04:28]} 25. h6 {[%emt 0:02:00]} Kg8 {[%emt 0:04:09]} 26. h7+ {[%emt 0:01:56]} Kh8 {[%emt 0:00:05]} 27. Qxa6 {[%emt 0:04:56]} bxa6 {[%emt 0:00:06]} 28. Rde1 {[%emt 0:00:02]} Bf4 {[%emt 0:03:08]} 29. Re2 {[%emt 0:02:46]} Rae8 {[%emt 0:01:47]} 30. b4 {[%emt 0:00:35]} Ng5 {[%emt 0:05:04]} 31. Rxe6 {[%emt 0:02:09]} Rxe6 {[%emt 0:00:46]} 32. Ne1 {[%emt 0:00:22]} Bd2 {[%emt 0:02:37]} 33. Nd3 {[%emt 0:00:06]} c4 {[%emt 0:00:58]} 34. Nb2 {[%emt 0:00:03]} Bc3 {[%emt 0:01:22]} 35. Kb1 {[%emt 0:00:01]} Nb6 {[%emt 0:02:17]} 36. a3 {[%emt 0:00:34]} Nxh7 {[%emt 0:01:12]} 37. f4 {[%emt 0:01:11]} Re4 {[%emt 0:01:54]} 38. Rf1 {[%emt 0:00:34]} Bxb2 {[%emt 0:00:38]} 39. Kxb2 {[%emt 0:00:13]} Kg8 {[%emt 0:01:34]} 40. g5 {[%emt 0:00:00]} Nd5 {[%emt 0:00:00]} 0-1

[Event "XXIX Cracovia 2018"]
[Site "Krakow"]
[Date "2018.12.31"]
[Round "6"]
[White "Szpar, Milosz"]
[Black "Goluch, Piotr"]
[Result "1/2-1/2"]
[ECO "B18"]
[WhiteElo "2339"]
[BlackElo "2273"]
[Annotator "NA"]
[PlyCount "125"]
[EventDate "2018.12.27"]
[EventType "swiss"]
[EventCountry "POL"]
[SourceTitle "playchess.com"]
[Source "ChessBase"]
[SourceQuality "1"]
[TimeControl "40/5400+30:1800+30"]

1. e4 {[%emt 0:00:00]} c6 {[%emt 0:00:40]} 2. d4 {[%emt 0:00:00]} d5 {[%emt 0:00:04]} 3. Nd2 {[%emt 0:00:00]} dxe4 {[%emt 0:00:04]} 4. Nxe4 {[%emt 0:00:00]} Bf5 {[%emt 0:00:04]} 5. Ng3 {[%emt 0:00:00]} Bg6 {[%emt 0:00:07] LiveBook: 12464 Games} 6. h4 {[%emt 0:00:10]} h6 {[%emt 0:00:05]} 7. Nf3 {[%emt 0:00:04]} e6 {[%emt 0:02:53]} 8. h5 {[%emt 0:07:05]} Bh7 {[%emt 0:00:05]} 9. Bd3 {[%emt 0:00:02]} Bxd3 {[%emt 0:00:07]} 10. Qxd3 {[%emt 0:00:02]} Nf6 {[%emt 0:00:05]} 11. Bd2 {[%emt 0:00:34]} c5 {[%emt 0:05:23]} 12. Ne4 {[%emt 0:00:30] B19: Classical Caro-Kann: 4...Bf5 main line} Nc6 {[%emt 0:00:40]} 13. Bc3 {[%emt 0:05:57]} cxd4 {[%emt 0:06:39]} 14. Nxd4 {[%emt 0:01:33] [#]} Nd5 $146 {[%emt 0:29:01]} ({Predecessor:} 14... Nb4 15. Nxf6+ gxf6 16. Bxb4 Bxb4+ 17. c3 Be7 18. O-O-O Qb6 19. Qb5+ Kf8 {1-0 (55) Wei,Y (2727)-Wang,H (2690) China 2017}) 15. O-O-O {[%emt 0:07:35]} Qb6 {[%emt 0:04:45]} 16. Qc4 $14 {[%emt 0:16:24]} Nxc3 {[%emt 0:14:20]} 17. Nxc3 {[%emt 0:01:27]} Qb4 {[%emt 0:12:08]} 18. Qxb4 {[%emt 0:16:05]} Bxb4 {[%emt 0:00:05]} 19. Ne4 {[%emt 0:01:28]} Rc8 {[%emt 0:04:26]} 20. Rh3 {[%emt 0:02:17]} Nxd4 {[%emt 0:01:14]} 21. Rxd4 {[%emt 0:00:08]} Be7 {[%emt 0:00:04]} 22. Rhd3 {[%emt 0:01:21]} Rc7 {[%emt 0:01:17]} 23. g4 {[%emt 0:05:27]} O-O {[%emt 0:03:55]} 24. Rd7 {[%emt 0:00:35]} Rfc8 {[%emt 0:00:47]} 25. c3 {[%emt 0:03:52]} Kf8 {[%emt 0:02:31]} 26. Kd2 {[%emt 0:03:44]} Ke8 {[%emt 0:00:07]} 27. Rxc7 {[%emt 0:00:47]} Rxc7 {[%emt 0:00:04]} 28. Ke3 {[%emt 0:02:42]} g6 {[%emt 0:03:41]} 29. hxg6 {[%emt 0:01:03]} fxg6 {[%emt 0:00:04]} 30. Kf4 {[%emt 0:01:29]} Bf8 {[%emt 0:01:10]} 31. a4 {[%emt 0:05:41]} Rf7+ {[%emt 0:02:12]} 32. Kg3 {[%emt 0:02:18]} Be7 {[%emt 0:02:56]} 33. f4 {[%emt 0:09:42]} h5 {[%emt 0:00:58]} 34. gxh5 {[%emt 0:02:23]} gxh5 {[%emt 0:00:01]} 35. Rd1 {[%emt 0:00:32]} Rf5 {[%emt 0:00:24]} 36. Re1 {[%emt 0:02:36]} Kf7 {[%emt 0:01:56]} 37. c4 {[%emt 0:00:33]} e5 {[%emt 0:01:19]} 38. fxe5 {[%emt 0:00:23]} Ke6 {[%emt 0:01:04]} 39. Nc3 {[%emt 0:02:24]} Bb4 {[%emt 0:00:24]} 40. Re3 {[%emt 0:00:00]} Rxe5 {[%emt 0:00:00]} 41. Ne4 {[%emt 0:07:05]} Kf5 {[%emt 0:04:44]} 42. Kf3 {[%emt 0:00:21]} h4 {[%emt 0:00:01]} 43. b3 {[%emt 0:02:14]} a5 {[%emt 0:00:54]} 44. Re2 {[%emt 0:00:43]} b6 {[%emt 0:00:46]} 45. Re3 {[%emt 0:00:40]} Re6 {[%emt 0:04:39]} 46. Re2 {[%emt 0:00:15]} Rg6 {[%emt 0:00:11]} 47. Ke3 {[%emt 0:04:28]} h3 {[%emt 0:00:51]} 48. Kf3 {[%emt 0:03:18]} Bd6 {[%emt 0:03:06]} 49. c5 {[%emt 0:07:48]} bxc5 {[%emt 0:00:16]} 50. Nxd6+ {[%emt 0:00:29]} Rxd6 {[%emt 0:00:03]} 51. Rc2 {[%emt 0:00:10]} Rd3+ {[%emt 0:01:04]} 52. Kf2 {[%emt 0:00:26]} Rd5 {[%emt 0:01:57]} 53. Kg3 {[%emt 0:01:41]} Ke4 {[%emt 0:00:05]} 54. Rc4+ {[%emt 0:01:45]} Ke5 {[%emt 0:00:01]} 55. Rc3 {[%emt 0:01:16]} Ke4 {[%emt 0:05:21]} 56. Rc4+ {[%emt 0:00:18]} Ke5 {[%emt 0:00:11]} 57. Rc3 {[%emt 0:00:12]} Kd6 {[%emt 0:00:11]} 58. Kxh3 {[%emt 0:00:22]} Rg5 {[%emt 0:00:03]} 59. Rd3+ {[%emt 0:02:36]} Kc6 {[%emt 0:00:01]} 60. Rd8 {[%emt 0:01:29]} Rg1 {[%emt 0:00:06]} 61. Rb8 {[%emt 0:02:04]} Kd5 {[%emt 0:01:31]} 62. Rb5 {[%emt 0:00:22]} Rb1 {[%emt 0:00:05]} 63. Kg2 {[%emt 0:00:32]} 1/2-1/2

[Event "XXIX Cracovia 2018"]
[Site "Krakow"]
[Date "2018.12.31"]
[Round "6"]
[White "Heinzel, Olaf"]
[Black "Chylewski, Patryk"]
[Result "1/2-1/2"]
[ECO "D00"]
[WhiteElo "2326"]
[BlackElo "2268"]
[Annotator "NA"]
[PlyCount "41"]
[EventDate "2018.12.27"]
[EventType "swiss"]
[EventCountry "POL"]
[SourceTitle "playchess.com"]
[Source "ChessBase"]
[SourceQuality "1"]
[TimeControl "40/5400+30:1800+30"]

1. d4 {[%emt 0:00:00]} d5 {[%emt 0:00:00]} 2. Bf4 {[%emt 0:00:00]} Nf6 {[%emt 0:00:00]} 3. e3 {[%emt 0:00:00]} e6 {[%emt 0:00:00]} 4. Nd2 {[%emt 0:00:06]} c5 {[%emt 0:00:08]} 5. c3 {[%emt 0:00:10]} Nc6 {[%emt 0:00:06] LiveBook: 653 Games} 6. Ngf3 {[%emt 0:01:44]} cxd4 {[%emt 0:00:08]} 7. exd4 {[%emt 0:00:15] D02: 1 d4 d5 2 Nf3 sidelines, including 2...Nf6 3 g3 and 2...Nf6 3 Bf4} Nh5 {[%emt 0:00:06]} 8. Be3 {[%emt 0:01:12]} Bd6 {[%emt 0:00:06]} 9. Ne5 {[%emt 0:02:04]} (9. Bd3 Nf4 10. Bxf4 Bxf4 11. g3 Bd6 12. O-O O-O 13. Re1 Bd7 14. h4 h6 {1-0 (44) Caruana,F (2822)-Aronian,L (2767) chess.com INT 2018}) 9... g6 {[%emt 0:00:09]} 10. f4 {[%emt 0:07:53]} O-O $146 {[%emt 0:08:18]} ({Predecessor:} 10... Ng7 11. Bd3 f6 12. Nef3 Nf5 13. Qe2 Qc7 14. g3 Bd7 {1-0 (45) Duda,J (2717)-Bosiocic,M (2624) Katowice 2017}) 11. Be2 {[%emt 0:04:04]} Ng7 {[%emt 0:00:28]} 12. O-O {[%emt 0:05:41]} Qc7 {[%emt 0:07:47]} 13. Ndf3 {[%emt 0:07:00]} Na5 {[%emt 0:06:53]} 14. b4 {[%emt 0:08:25]} Nc6 {[%emt 0:01:36]} 15. Qd2 {[%emt 0:02:07]} f6 {[%emt 0:12:26]} 16. Nd3 {[%emt 0:01:17]} b6 {[%emt 0:02:16]} 17. a4 {[%emt 0:05:35]} Bb7 {[%emt 0:05:47]} 18. Rfe1 $11 {[%emt 0:05:24]} Rac8 {[%emt 0:02:05]} 19. Rac1 {[%emt 0:00:36]} Qd7 {[%emt 0:01:51]} 20. Qa2 {[%emt 0:07:25]} Kh8 {[%emt 0:05:00]} 21. Bf1 {[%emt 0:05:21]} 1/2-1/2

[Event "XXIX Cracovia 2018"]
[Site "Krakow"]
[Date "2018.12.31"]
[Round "6"]
[White "Naboka, Sergey"]
[Black "Gombocz, Ferenc Jr."]
[Result "1/2-1/2"]
[ECO "C60"]
[WhiteElo "2324"]
[BlackElo "2263"]
[Annotator "NA"]
[PlyCount "196"]
[EventDate "2018.12.27"]
[EventType "swiss"]
[EventCountry "POL"]
[SourceTitle "playchess.com"]
[Source "ChessBase"]
[SourceQuality "1"]
[TimeControl "40/5400+30:1800+30"]

1. e4 e5 2. Nf3 Nc6 3. Bb5 g6 4. d4 exd4 5. Bg5 Be7 6. Bxe7 Qxe7 7. Bxc6 dxc6 8. Qxd4 Nf6 9. Nc3 Bg4 {C60: Ruy Lopez: Unusual Black 3rd moves and 3...g6} 10. Nd2 (10. O-O-O Bxf3 11. gxf3 a5 12. Qe3 Nd7 13. Ne2 O-O-O 14. Qa7 Qc5 15. Qxc5 Nxc5 16. h4 Ne6 17. h5 Rxd1+ 18. Kxd1 {½-½ (50) Kobalia,M (2620)-Paravyan,D (2629) Sochi 2018}) 10... c5 11. Qe3 Bd7 12. O-O $146 ({Predecessor:} 12. f3 Bc6 13. O-O O-O-O 14. Rad1 Kb8 15. Rfe1 Rhe8 16. Qg5 b6 17. Nf1 {1-0 (53) Priasmoro,N (2282)-Cherednichenko,E (2182) Pardubice 2014}) 12... O-O 13. f4 Rad8 14. Nf3 Rfe8 15. Rae1 b5 16. Ne5 b4 17. Ne2 Bb5 18. Rf3 Nd7 19. Nxd7 Rxd7 20. Ng3 {[#]} Qd6 $2 (20... f5 $1 $11 {[%mdl 512]}) 21. e5 Qd2 22. Ne4 {Double Attack} Qxe3+ 23. Rfxe3 Kf8 24. Nf6 Rd2 25. Nxe8 $18 Kxe8 26. a4 Bxa4 27. R3e2 Rxc2 28. Rxc2 Bxc2 29. Ra1 c4 30. Rxa7 c3 31. bxc3 b3 32. Rb7 Kd7 33. c4 Kc6 34. Rb5 Bd3 35. Rxb3 Bxc4 36. Rb8 Kd5 37. Kf2 Ke4 38. g3 Be6 39. Ke2 c5 40. Rb7 h5 41. Ra7 c4 42. Ra3 Kf5 43. Kf3 Bd5+ 44. Ke3 Kg4 45. Kd4 Be6 46. Ke4 Bf5+ 47. Kd4 Be6 48. Ke3 Bd5 49. Ra5 Be6 50. Kf2 Kh3 51. Kg1 h4 52. Ra3 Kg4 53. Kf2 Bd5 54. Ke3 hxg3 55. hxg3 Be6 56. Ke4 Bf5+ 57. Kd4 Be6 58. Re3 Kh3 59. Kc5 Kg4 60. Kd6 Kh3 61. Ke7 Bd5 62. Kd6 Be6 63. Kc5 Kg4 64. Kd4 Kh3 65. Kc3 Kg4 66. Kd2 Bf5 67. Ke1 Be6 68. Kf2 Bd5 69. Ra3 Kf5 70. Ke3 Kg4 71. Ra5 Be6 72. Kf2 g5 73. Ke3 Kxg3 74. fxg5 Kg4 75. g6 fxg6 76. Ke4 c3 77. Ra1 c2 78. Rg1+ Kh3 79. Kf4 Kh4 80. Rh1+ Bh3 81. Ke3 Kg5 82. Kd2 Be6 83. Rf1 Bf5 84. Re1 Be6 85. Kxc2 Kf4 86. Kd3 g5 87. Kd4 g4 88. Rf1+ Kg5 89. Rf6 g3 90. Ke3 Bd5 91. Rd6 Ba8 92. Rd8 Bc6 93. Rf8 Bd5 94. Ke2 Kg6 95. Ke3 Kg5 96. Rd8 Bc6 97. Rg8+ Kf5 98. Rxg3 Kxe5 {Ke4+} 1/2-1/2

[Event "XXIX Cracovia 2018"]
[Site "Krakow"]
[Date "2018.12.31"]
[Round "6"]
[White "Grela, Kacper"]
[Black "Cukrowski, Filip"]
[Result "1/2-1/2"]
[ECO "E12"]
[WhiteElo "2305"]
[BlackElo "2416"]
[Annotator "NA"]
[PlyCount "41"]
[EventDate "2018.12.27"]
[EventType "swiss"]
[EventCountry "POL"]
[SourceTitle "playchess.com"]
[Source "ChessBase"]
[SourceQuality "1"]
[TimeControl "40/5400+30:1800+30"]

{[%evp 16,40,11,32767,32767,17,10,17,47,32767,0,0,32767,32767,32767,32767,32767,32767,32767,0,0,0,11,19,28,18,22]} 1. d4 {[%emt 0:00:00]} Nf6 {[%emt 0:07:51]} 2. c4 {[%emt 0:01:34]} e6 {[%emt 0:00:26]} 3. Nf3 {[%emt 0:00:09]} b6 {[%emt 0:00:08]} 4. Bf4 {[%emt 0:00:07]} d5 {[%emt 0:05:03] E12: Queen's Indian: Unusual White 4th moves, 4 a3, 4 Nc3 Bb7 5 a3 and 4 Nc3 Bb7} 5. e3 {[%emt 0:00:25]} Bd6 {[%emt 0:00:47]} 6. Bxd6 {[%emt 0:02:40]} Qxd6 {[%emt 0:00:17]} 7. Nc3 {[%emt 0:00:28]} O-O {[%emt 0:00:19]} 8. Bd3 {[%emt 0:01:10]} (8. Rc1 a6 9. cxd5 exd5 10. Bd3 c5 11. dxc5 bxc5 12. O-O Bb7 13. Qb3 Bc6 {1-0 (72) Fedoseev,V (2718)-Akobian,V (2647) Riadh 2017}) 8... Ba6 {[%emt 0:00:35]} 9. cxd5 {[%emt 0:00:47]} exd5 {[%emt 0:03:02]} 10. O-O {[%emt 0:01:30]} Bxd3 {[%emt 0:08:57]} 11. Qxd3 {[%emt 0:02:18]} c6 $146 {[%emt 0:00:05]} ({Predecessor:} 11... a6 12. Rac1 Re8 13. Rfd1 Nbd7 14. h3 {0-1 (47) Casser,A-Bunyan,H IECG email 1999}) 12. Rab1 {[%emt 0:09:19]} Nbd7 {[%emt 0:03:46]} 13. b4 {[%emt 0:00:24]} Rac8 {[%emt 0:02:53]} 14. Rfd1 {[%emt 0:04:23]} Rfe8 {[%emt 0:00:24]} 15. b5 {[%emt 0:08:03]} c5 {[%emt 0:00:20]} 16. dxc5 {[%emt 0:01:01]} Nxc5 {[%emt 0:00:39]} 17. Qd4 {[%emt 0:08:20]} Nce4 {[%emt 0:00:50]} 18. Nxe4 {[%emt 0:01:10]} (18. Nxd5 $2 Nxd5 19. Qxd5 Qxd5 $17) 18... Nxe4 {[%emt 0:05:53]} 19. Rbc1 {[%emt 0:02:07]} Qa3 {[%emt 0:05:18]} 20. Rxc8 {[%emt 0:02:37]} Rxc8 $11 {[%emt 0:02:17]} 21. Qxd5 {[%emt 0:09:11]} 1/2-1/2

[Event "XXIX Cracovia 2018"]
[Site "Krakow"]
[Date "2018.12.31"]
[Round "6"]
[White "Nowicki, Bartosz"]
[Black "Gumularz, Szymon"]
[Result "0-1"]
[ECO "B36"]
[WhiteElo "2305"]
[BlackElo "2462"]
[Annotator "RC"]
[PlyCount "66"]
[EventDate "2018.12.27"]
[EventType "swiss"]
[EventCountry "POL"]
[SourceTitle "playchess.com"]
[Source "ChessBase"]
[SourceQuality "1"]
[TimeControl "40/5400+30:1800+30"]

1. e4 {[%emt 0:00:46]} c5 {[%emt 0:00:00]} 2. Nf3 {[%emt 0:00:05]} Nc6 {[%emt 0:00:00]} 3. d4 {[%emt 0:00:05]} cxd4 {[%emt 0:00:00]} 4. Nxd4 {[%emt 0:00:05]} g6 {[%emt 0:01:41]} 5. c4 {[%emt 0:00:10]} Nf6 {[%emt 0:00:07]} 6. Nc3 {[%emt 0:00:05]} d6 {[%emt 0:00:03]} 7. Be2 {[%emt 0:00:08]} Bg7 {[%emt 0:00:15]} 8. Be3 {[%emt 0:00:07]} O-O {[%emt 0:00:05]} 9. O-O {[%emt 0:00:04]} Bd7 {[%emt 0:00:04]} 10. Qd2 {[%emt 0:00:28]} Nxd4 {[%emt 0:00:05]} 11. Bxd4 {[%emt 0:00:05]} Bc6 {[%emt 0:00:07]} 12. Bd3 {[%emt 0:00:54]} a5 {[%emt 0:01:59]} 13. Rae1 {[%emt 0:00:38]} a4 {[%emt 0:01:33]} 14. f4 {[%emt 0:11:19]} e5 {[%emt 0:07:33]} 15. Be3 {[%emt 0:01:59]} exf4 {[%emt 0:02:10]} 16. Rxf4 {[%emt 0:07:16]} Nd7 {[%emt 0:01:19]} 17. Nd5 {[%emt 0:05:26]} Bxd5 {[%emt 0:01:57]} 18. exd5 {[%emt 0:00:05]} Re8 {[%emt 0:03:45]} 19. Qf2 {[%emt 0:04:34]} Bh6 {[%emt 0:09:03]} 20. Re4 {[%emt 0:03:27]} Rxe4 {[%emt 0:04:02]} 21. Bxe4 {[%emt 0:00:06]} Bxe3 {[%emt 0:00:06]} 22. Rxe3 {[%emt 0:18:42]} Ne5 {[%emt 0:04:19]} 23. Rc3 {[%emt 0:00:38]} Qa5 {[%emt 0:10:52]} 24. c5 {[%emt 0:09:48]} Qb4 {[%emt 0:01:04]} 25. Bf3 {[%emt 0:00:17]} dxc5 {[%emt 0:05:25]} 26. Qxc5 {[%emt 0:00:06]} Qxb2 {[%emt 0:03:34]} 27. d6 {[%emt 0:00:09]} Re8 {[%emt 0:06:46]} 28. h3 {[%emt 0:03:54]} Qd2 {[%emt 0:10:59]} 29. Bd5 {[%emt 0:04:57]} b6 {[%emt 0:07:34]} 30. Qb5 {[%emt 0:01:29]} Kg7 {[%emt 0:02:23]} 31. Rc7 {[%emt 0:08:47]} Nf3+ {[%emt 0:02:24]} 32. Bxf3 {[%emt 0:00:06]} Re1+ {[%emt 0:00:03]} 33. Kh2 {[%emt 0:00:15]} Qxd6+ {[%emt 0:00:03]} 0-1

[Event "XXIX Cracovia 2018"]
[Site "Krakow"]
[Date "2018.12.31"]
[Round "6"]
[White "Dzierzak, Radoslaw"]
[Black "Licznerski, Lukasz"]
[Result "1/2-1/2"]
[ECO "C48"]
[WhiteElo "2283"]
[BlackElo "2326"]
[Annotator "NA"]
[PlyCount "107"]
[EventDate "2018.12.27"]
[EventType "swiss"]
[EventCountry "POL"]
[SourceTitle "playchess.com"]
[Source "ChessBase"]
[SourceQuality "1"]
[TimeControl "40/5400+30:1800+30"]

1. e4 {[%emt 0:00:00]} e5 {[%emt 0:10:24]} 2. Nf3 {[%emt 0:00:00]} Nc6 {[%emt 0:00:03]} 3. Bb5 {[%emt 0:00:01]} Nf6 {[%emt 0:00:18]} 4. Nc3 {[%emt 0:00:30]} Nd4 {[%emt 0:03:39]} 5. Bc4 {[%emt 0:00:35]} c6 {[%emt 0:00:53] C48: Four Knights: 4 Bb5, replies other than 4...Bb4} (5... Bc5 6. d3 d6 7. Na4 b5 8. Nxd4 bxc4 9. Nf5 Bxf5 10. exf5 cxd3 11. Nxc5 dxc5 12. cxd3 Qd7 13. Qf3 O-O 14. Bg5 Rab8 {½-½ (30) Kovalev,V (2664)-Ragger,M (2686) Batumi 2018}) 6. Nxe5 {[%emt 0:07:01]} d5 {[%emt 0:00:08]} 7. exd5 {[%emt 0:00:54]} Bd6 {[%emt 0:00:03]} 8. Nf3 {[%emt 0:08:26]} Nxf3+ {[%emt 0:00:31]} 9. Qxf3 {[%emt 0:08:03]} O-O {[%emt 0:00:07]} 10. h3 {[%emt 0:03:56] LiveBook: 6 Games} b5 {[%emt 0:04:33]} 11. Be2 {[%emt 0:01:54]} b4 {[%emt 0:00:41]} 12. Nd1 {[%emt 0:01:04]} ({Reject} 12. dxc6 bxc3 13. dxc3 (13. c7 Qxc7 14. Qxa8 Ba6 $19) 13... Re8 $17) 12... cxd5 {[%emt 0:04:02]} 13. d4 $146 {[%emt 0:07:55]} ({Predecessor:} 13. O-O) 13... Qc7 {[%emt 0:13:31]} 14. Bd3 {[%emt 0:03:39]} Re8+ {[%emt 0:02:05]} 15. Be3 {[%emt 0:02:22]} Qb6 {[%emt 0:03:04]} 16. O-O $11 {[%emt 0:00:26]} Bb8 {[%emt 0:00:03]} 17. Bf4 {[%emt 0:11:45]} Qxd4 {[%emt 0:00:41]} 18. Bxb8 {[%emt 0:00:17]} Rxb8 {[%emt 0:00:01]} 19. Ne3 {[%emt 0:01:45]} Qxb2 {[%emt 0:17:07]} 20. Nxd5 {[%emt 0:00:51]} Nxd5 {[%emt 0:00:12]} 21. Qxd5 {[%emt 0:00:33]} Be6 {[%emt 0:00:18]} 22. Qc5 {[%emt 0:04:57]} Qa3 {[%emt 0:01:42]} 23. f4 {[%emt 0:02:05]} Rec8 {[%emt 0:03:44]} 24. Qd4 {[%emt 0:03:47]} Rd8 {[%emt 0:09:02]} 25. Qf2 {[%emt 0:02:58]} Bd5 {[%emt 0:04:27]} 26. Qh4 {[%emt 0:05:47]} h6 {[%emt 0:00:59]} 27. Qh5 {[%emt 0:04:41]} Qc3 {[%emt 0:05:56]} 28. Qf5 {[%emt 0:05:13]} g6 {[%emt 0:00:39]} 29. Qg4 {[%emt 0:01:43]} Bc4 {[%emt 0:01:52]} 30. f5 {[%emt 0:03:14]} Bxd3 {[%emt 0:00:38]} 31. cxd3 {[%emt 0:00:04]} g5 {[%emt 0:01:28]} 32. f6 {[%emt 0:04:28]} Qd4+ {[%emt 0:01:32]} 33. Qxd4 {[%emt 0:00:52]} Rxd4 {[%emt 0:00:02]} 34. Rac1 {[%emt 0:01:01]} Rxd3 {[%emt 0:00:58]} 35. Rc7 {[%emt 0:00:15]} Ra3 {[%emt 0:00:31]} 36. Rf2 {[%emt 0:00:52]} Rf8 {[%emt 0:06:26]} 37. h4 {[%emt 0:01:14]} Kh7 {[%emt 0:04:16]} 38. hxg5 {[%emt 0:02:36]} hxg5 {[%emt 0:00:22]} 39. Rc5 {[%emt 0:00:24]} Kg6 {[%emt 0:01:36]} 40. Rff5 {[%emt 0:00:00]} Rb8 {[%emt 0:00:00]} 41. Rxg5+ {[%emt 0:02:55]} Kxf6 {[%emt 0:03:01]} 42. Rgf5+ {[%emt 0:02:05]} Kg6 {[%emt 0:04:58]} 43. Rg5+ {[%emt 0:00:37]} Kf6 {[%emt 0:00:04]} 44. Rgf5+ {[%emt 0:00:09]} Kg7 {[%emt 0:00:11]} 45. Ra5 {[%emt 0:02:45]} Rxa5 46. Rxa5 {[%emt 0:00:06]} Rb7 {[%emt 0:02:56]} 47. Ra6 {[%emt 0:00:45]} Kf8 {[%emt 0:01:55]} 48. Kf2 {[%emt 0:01:39]} Ke7 {[%emt 0:00:01]} 49. Ke3 {[%emt 0:01:31]} b3 {[%emt 0:00:42]} 50. axb3 {[%emt 0:00:05]} Rxb3+ {[%emt 0:00:03]} 51. Ke4 {[%emt 0:01:17]} Rb7 {[%emt 0:00:20]} 52. Ke5 {[%emt 0:01:24]} Kd7 {[%emt 0:08:02]} 53. g4 {[%emt 0:01:38]} Ke7 {[%emt 0:00:47]} 54. Ke4 1/2-1/2

[Event "XXIX Cracovia 2018"]
[Site "Krakow"]
[Date "2018.12.31"]
[Round "6"]
[White "Czerw, Dawid"]
[Black "Mosesov, Danylo"]
[Result "0-1"]
[ECO "E04"]
[WhiteElo "2275"]
[BlackElo "2343"]
[Annotator "NA"]
[PlyCount "52"]
[EventDate "2018.12.27"]
[EventType "swiss"]
[EventCountry "POL"]
[SourceTitle "playchess.com"]
[Source "ChessBase"]
[SourceQuality "1"]
[TimeControl "40/5400+30:1800+30"]

1. d4 {[%emt 0:00:00]} Nf6 {[%emt 0:00:00]} 2. c4 {[%emt 0:00:00]} e6 {[%emt 0:00:00]} 3. g3 {[%emt 0:00:00]} d5 {[%emt 0:00:00]} 4. Bg2 {[%emt 0:00:00]} dxc4 {[%emt 0:01:07]} 5. Nf3 {[%emt 0:01:47]} b5 {[%emt 0:00:20]} 6. a4 {[%emt 0:02:49]} c6 {[%emt 0:01:14]} 7. O-O {[%emt 0:03:47]} Bb7 {[%emt 0:00:27]} 8. b3 {[%emt 0:01:59]} cxb3 {[%emt 0:03:27]} 9. Qxb3 {[%emt 0:00:44]} a6 {[%emt 0:00:30]} 10. Ne5 {[%emt 0:13:35]} Qxd4 {[%emt 0:06:13]} 11. Bb2 {[%emt 0:00:12]} Qb6 {[%emt 0:01:13]} 12. Rc1 {[%emt 0:13:02]} Bc5 {[%emt 0:09:27]} 13. Nd3 {[%emt 0:04:35]} Be7 {[%emt 0:02:43]} 14. a5 {[%emt 0:17:44]} (14. Ba3 $11 {remains equal.}) 14... Qd8 {[%emt 0:04:01]} 15. Ne5 $17 {[%emt 0:08:41]} (15. Nc3 $15) 15... Qc7 {[%emt 0:03:14]} 16. Na3 {[%emt 0:04:21]} O-O {[%emt 0:01:39]} 17. g4 {[%emt 0:03:18]} c5 {[%emt 0:05:03]} 18. g5 {[%emt 0:02:56]} Bxg2 {[%emt 0:02:47]} 19. Kxg2 {[%emt 0:05:25]} Nd5 {[%emt 0:00:09]} 20. e4 {[%emt 0:02:24]} Nf4+ {[%emt 0:01:34]} 21. Kh1 {[%emt 0:01:22]} Bxg5 {[%emt 0:01:52]} 22. Qg3 {[%emt 0:03:14]} f6 {[%emt 0:02:04]} 23. Nd3 {[%emt 0:03:33]} c4 {[%emt 0:01:58]} 24. Nxc4 {[%emt 0:03:34]} bxc4 {[%emt 0:00:15]} 25. Ra4 {[%emt 0:00:15]} Qd7 {[%emt 0:02:49]} 26. Nc5 {[%emt 0:01:52]} Qd2 {[%emt 0:00:50]} 0-1